Cogmind - Beta 16 @@@ ROGUE MODE // 2026.01.16 @ 11:52:11 Player: phosphophyllite Result: Destroyed by D-53 Grenadier with Mini Grenade Launcher Performance ------------- Evolutions (0) 0 Regions Visited (4) 800 Robots Destroyed (20) 100 Value Destroyed (246) 246 Prototype IDs (23) 460 Alien Tech Used (0) 0 Bonus (300) 300 TOTAL SCORE: 1906 Bonus ------- Aligned with FarCom 300 Cogmind --------- Core Integrity 0/250 Matter 165/300 Energy 88/250 System Corruption 0% Temperature Cool (0) Movement Walking (400) Ox4 Location -9/Mines Parts ------- > --- POWER (1) -------- Ion Engine > --- PROPULSION (2) --- Aluminum Leg Aluminum Leg > --- UTILITY (2) ------ Huge Storage Unit Improved Terrain Scanner > --- WEAPON (2) ------- Rocket Launcher > --- INVENTORY (25) --- Ion Engine Ion Engine Light Treads Light Treads Aluminum Leg Aluminum Leg Aluminum Leg Heat Sink Small Storage Unit Medium Matter Pod (100) Improved Terrain Scanner Targeting Computer Propulsion Shielding Medium Laser Medium Laser Medium Laser Light Assault Rifle Light Assault Rifle AWS/Autocannon Peak State ------------ > --- POWER ------------ Ion Engine > --- PROPULSION ------- Light Treads Light Treads > --- UTILITY ---------- Huge Storage Unit Improved Terrain Scanner > --- WEAPON ----------- Assault Rifle Rocket Launcher > --- INVENTORY -------- Ion Engine Ion Engine Ion Engine Light Treads Light Treads Aluminum Leg Aluminum Leg Aluminum Leg Aluminum Leg Aluminum Leg Heat Sink Small Storage Unit Medium Matter Pod Improved Terrain Scanner Targeting Computer Propulsion Shielding Medium Laser Medium Laser Medium Laser Light Assault Rifle Light Assault Rifle AWS/Autocannon [Rating: 15] Favorites ----------- Power Ion Engine Engine Ion Engine Propulsion Light Treads Treads Light Treads Leg Aluminum Leg Utility Improved Terrain Scanner Device Improved Terrain Scanner Storage Huge Storage Unit Weapon Assault Rifle Energy Gun EM Pulse Gun Ballistic Gun Assault Rifle Launcher Rocket Launcher Build | -11 -10 -10 -10 -9 ------- Run | Yrd Mat Min Exi Min Slots Evolved . | . . . . . Power . | . . . . . Propulsion . | . . . . . Utility . | . . . . . Weapon . | . . . . . Parts Attached 16 | 7 3 2 . 4 Power 2 | 1 . . . 1 Engine 2 | 1 . . . 1 Core . | . . . . . Reactor . | . . . . . Propulsion 4 | 2 . . . 2 Treads 2 | 2 . . . . Leg 2 | . . . . 2 Wheel . | . . . . . Hover . | . . . . . Flight . | . . . . . Utility 4 | 2 1 1 . . Device 2 | 1 . 1 . . Storage 2 | 1 1 . . . Processor . | . . . . . Hackware . | . . . . . Protection . | . . . . . Artifact . | . . . . . Weapon 6 | 2 2 1 . 1 Energy Gun 3 | 1 1 1 . . Energy Cannon . | . . . . . Ballistic Gun 2 | 1 1 . . . Ballistic Cannon . | . . . . . Launcher 1 | . . . . 1 Special Weapon . | . . . . . Impact Weapon . | . . . . . Slashing Weapon . | . . . . . Piercing Weapon . | . . . . . Special Melee Weapon . | . . . . . Unidentified Prototypes . | . . . . . Parts Lost 5 | . 1 . . 4 Power 1 | . . . . 1 Propulsion 2 | . . . . 2 Utility . | . . . . . Weapon 2 | . 1 . . 1 Highest Loss Streak 4 | . 1 . . 4 To Critical Strikes . | . . . . . Average Backups 13 | 3 12 19 20 21 Power 2 | . 1 3 3 2 Propulsion 5 | 1 4 7 7 6 Utility 3 | . 3 5 6 6 Weapon 2 | . 2 4 4 5 Tool/Special . | . . . . . Unused Backups 14 | . . . . 14 Power 2 | . . . . 2 Propulsion 5 | . . . . 5 Utility 4 | . . . . 4 Weapon 3 | . . . . 3 Tool/Special . | . . . . . Average Slot Usage (%) 99 | . 99 100 100 95 Engine 14 | . 14 14 14 14 Treads 27 | . 28 28 28 24 Device 14 | . 14 14 14 14 Storage 14 | . 14 14 14 14 Energy Gun 2 | . 7 . . . Ballistic Gun 24 | . 20 27 28 20 Peak Build Rating 15 | 9 10 11 14 15 Average Rating 10 | 8 9 10 12 14 On Entrance 8 | . 9 10 11 14 Avg Prop Armor Cover (%) . | . . . . . Naked Turns . | . . . . . Heaviest Build 92 | 15 90 89 89 92 Greatest Support 40 | 40 40 40 40 40 Greatest Overweight (x) 2 | 2 2 2 2 2 Average Overweight (x) 1 | . 1 2 2 2 Largest Inventory Capacity 25 | 8 25 25 25 25 Average Capacity 20 | 7 22 25 25 25 Most Carried 24 | 4 19 20 23 24 Average Carried 14 | 3 12 19 21 23 Final Capacity 25 | 8 25 25 25 25 Final Carried 23 | 4 19 20 23 21 Class Distribution -------------------- 97% | Mutant Dominant Class ---------------- Mutant | -10/Materials Mutant | -10/Mines Mutant | -10/Exiles Skirmisher | -9/Mines Resources | -11 -10 -10 -10 -9 ----------- Run | Yrd Mat Min Exi Min Matter Collected 542 | 282 242 18 . . Remotely . | . . . . . Salvage Created 671 | 92 536 43 . . Parts 46 | 6 35 5 . . Haulers Intercepted 1 | . 1 . . . Recyclers Shooed 1 | . 1 . . . Parts Field Recycled . | . . . . . Retrieved Matter . | . . . . . Parts Self-Destructed . | . . . . . Prevented . | . . . . . Parts Restored . | . . . . . Kills | -11 -10 -10 -10 -9 ------- Run | Yrd Mat Min Exi Min Combat Hostiles Destroyed 9 | . 9 . . . Guns 7 | . 7 . . . AOE 2 | . 2 . . . Classes Destroyed 7 | 2 5 . . . Builder 1 | . 1 . . . Tunneler 3 | 1 . 2 . . Hauler 1 | . 1 . . . Recycler 4 | 1 3 . . . Watcher 2 | . 2 . . . Swarmer 6 | . 6 . . . Grunt 3 | . 3 . . . Best Kill Streak 13 | 2 13 1 . . Combat Bots Only 3 | . 3 . . . Max Kills in Single Turn 3 | 1 3 1 . . Gunslinging . | . . . . . Exploded 1 | . 1 . . . Melee . | . . . . . Uniques/NPCs Destroyed . | . . . . . Combat | -11 -10 -10 -10 -9 -------- Run | Yrd Mat Min Exi Min Hostile Shots Fired 74 | . 59 . . 15 Missed 23 | . 22 . . 1 Hits 51 | . 37 . . 14 Projectile 51 | . 37 . . 14 AOE 15 | . . . . 15 Damage Taken 969 | . 367 . . 602 Core 274 | . 42 . . 232 Absorbed by Shields . | . . . . . Core Remaining (%) 100 | 100 . . . . Volleys Fired 53 | 4 38 6 . 5 Largest 2 | 2 2 2 . 1 Hottest 100 | 60 70 100 . 33 Shots Fired 101 | 8 76 12 . 5 Gun 96 | 8 76 12 . . Cannon . | . . . . . Launcher 5 | . . . . 5 Special . | . . . . . Kinetic 61 | 4 47 10 . . Thermal 11 | . 9 2 . . Explosive 5 | . . . . 5 Electromagnetic 24 | 4 20 . . . Robot Hit Streak 12 | 6 12 4 . 2 Robot Miss Streak 4 | . 4 1 . 3 Penetration Max . | . . . . . Secondary Targets 2 | . 2 . . . Max Gunslinging Chain 1 | . 1 . . . Shots Hit Robots 62 | 6 49 5 . 2 Core Hits 32 | 3 21 3 . 5 Critical Kills . | . . . . . Critical Parts Destroyed . | . . . . . Critical Strikes . | . . . . . Melee Attacks . | . . . . . Impact . | . . . . . Slashing . | . . . . . Piercing . | . . . . . Sneak Attacks . | . . . . . Combat Hostiles . | . . . . . Follow-up Attacks . | . . . . . Damage Inflicted 1032 | 71 824 53 . 84 Guns 694 | 71 570 53 . . Cannons . | . . . . . Explosions 338 | . 254 . . 84 Melee . | . . . . . Ramming . | . . . . . Kinetic 413 | 23 337 53 . . Thermal 305 | . 305 . . . Explosive 84 | . . . . 84 Electromagnetic 230 | 48 182 . . . Impact . | . . . . . Slashing . | . . . . . Piercing . | . . . . . Highest Corruption . | . . . . . Average Corruption . | . . . . . Corruption Purged . | . . . . . Corruption Blocked . | . . . . . Overload Shots . | . . . . . Overflow Damage 18 | . 18 . . . Projectiles . | . . . . . Explosions 18 | . 18 . . . Melee . | . . . . . Knockbacks . | . . . . . Impact . | . . . . . Kinetic . | . . . . . Secondary . | . . . . . Self-Inflicted Damage 38 | . 38 . . . Shots 1 | . 1 . . . Rammed . | . . . . . Targets Rammed . | . . . . . Kicked . | . . . . . Crushed . | . . . . . Highest Temperature 81 | . 81 39 . . Average Temperature 29 | . 30 24 . . Received Heat Transfer 60 | . 60 . . . Siege Activations . | . . . . . Martial Activations . | . . . . . Shielding Activations . | . . . . . Robots Disrupted . | . . . . . Combat Hostiles . | . . . . . Robots Corrupted . | . . . . . Combat Hostiles . | . . . . . Parts Fried 1 | . 1 . . . Impact Corruptions . | . . . . . Robots Melted . | . . . . . Combat Hostiles . | . . . . . Parts Melted . | . . . . . Heat Transferred 448 | . 448 . . . Parts Sabotaged . | . . . . . Parts Stolen . | . . . . . Parts Stripped . | . . . . . Power Chain Reactions 4 | . 4 . . . Alert | -11 -10 -10 -10 -9 ------- Run | Yrd Mat Min Exi Min Maximum Alert Level . | . . . . . Low Security (%) 100 | 100 100 100 . 100 Level 1 . | . . . . . Level 2 . | . . . . . Level 3 . | . . . . . Level 4 . | . . . . . Level 5 . | . . . . . High Security . | . . . . . Max Security . | . . . . . Peak Influence 150 | 5 150 6 . 14 Initial 6 | . . 6 . . Average 22 | . 61 . . 1 Influence Increases 317 | 10 274 10 . 23 Destroy 0b10 Robot/C 180 | . 180 . . . Destroy 0b10 Robot/NC 55 | 10 35 10 . . Destroy Leader 46 | . 46 . . . Destroy Structure 36 | . 13 . . 23 Influence Decreases 317 | 10 256 28 . 23 Entered New Map 12 | . . 12 . . Time Decay 274 | 10 246 16 . 2 Lost Part 31 | . 10 . . 21 Squads Dispatched 3 | . 3 . . . Investigation 1 | . 1 . . . Extermination . | . . . . . Reinforcement 2 | . 2 . . . Assault . | . . . . . Garrison . | . . . . . Intercept . | . . . . . Searches Triggered . | . . . . . Construction Impeded . | . . . . . Haulers Reinforced . | . . . . . Active Scanning Responses . | . . . . . Cargo Convoy Interrupts . | . . . . . Stealth | -11 -10 -10 -10 -9 --------- Run | Yrd Mat Min Exi Min Distress Signals . | . . . . . Communications Jammed . | . . . . . Distress Signals . | . . . . . Times Spotted 17 | . 15 . . 2 Peak Tracking Total 3 | . 3 . . 2 Tactical Retreats . | . . . . . Traps | -11 -10 -10 -10 -9 ------- Run | Yrd Mat Min Exi Min Traps Triggered 1 | . 1 . . . Indirectly . | . . . . . Trap Hack Attempts . | . . . . . Triggered . | . . . . . Disarmed . | . . . . . Reprogrammed . | . . . . . Reused . | . . . . . Traps Extracted . | . . . . . Installed . | . . . . . Triggered . | . . . . . Machines | -11 -10 -10 -10 -9 ---------- Run | Yrd Mat Min Exi Min Machines Disabled . | . . . . . Max in Single Turn . | . . . . . Machines Repaired . | . . . . . Machines Dismantled . | . . . . . Machines Sabotaged . | . . . . . Overloaded Fab Kills . | . . . . . Hacking | -11 -10 -10 -10 -9 --------- Run | Yrd Mat Min Exi Min Machines Accessed 1 | . . . 1 . Terminals . | . . . . . Fabricators . | . . . . . Repair Stations . | . . . . . Recycling Units . | . . . . . Scanalyzers . | . . . . . Garrison Access . | . . . . . Total Hacks 1 | . . . 1 . Successful 1 | . . . 1 . Failed . | . . . . . Catastrophic . | . . . . . Database Lockouts . | . . . . . Manual 1 | . . . 1 . Terminals . | . . . . . Fabricators . | . . . . . Repair Stations . | . . . . . Recycling Units . | . . . . . Scanalyzers . | . . . . . Garrison Access . | . . . . . Terminal Hacks 1 | . . . 1 . Proto ID Catalog 1 | . . . 1 . Fabricator Hacks . | . . . . . Repair Station Hacks . | . . . . . Recycling Unit Hacks . | . . . . . Scanalyzer . | . . . . . Garrison Access Hacks . | . . . . . Unauthorized Hacks . | . . . . . Terminals . | . . . . . Fabricators . | . . . . . Repair Stations . | . . . . . Recycling Units . | . . . . . Scanalyzers . | . . . . . Garrison Access . | . . . . . Data Cores Recovered . | . . . . . Used . | . . . . . Hacking Detections . | . . . . . Full Trace Events . | . . . . . Feedback Events . | . . . . . Feedback Blocked . | . . . . . Robot Schematics Acquired . | . . . . . Robots Built . | . . . . . Authchips . | . . . . . Time . | . . . . . Total Robot Build Rating . | . . . . . Part Schematics Acquired . | . . . . . Parts Built . | . . . . . Authchips . | . . . . . Time . | . . . . . Total Part Build Rating . | . . . . . Part Studies Acquired . | . . . . . Parts Repaired . | . . . . . Time . | . . . . . Parts Recycled . | . . . . . Recycled Matter . | . . . . . Retrieved Matter . | . . . . . Retrieved Components . | . . . . . Parts Scanalyzed . | . . . . . Part Schematics Acquired . | . . . . . Parts Damaged . | . . . . . Bothacking | -11 -10 -10 -10 -9 ------------ Run | Yrd Mat Min Exi Min Used RIF Installer . | . . . . . Robots Hacked . | . . . . . Non-combat . | . . . . . Combat . | . . . . . Robot Hacks Applied . | . . . . . Relay Couplers Released . | . . . . . Fabnet Peak Effective % . | . . . . . Robots Rewired . | . . . . . Allies Hacked . | . . . . . Hacks Repelled . | . . . . . Allies | -11 -10 -10 -10 -9 -------- Run | Yrd Mat Min Exi Min Total Allies . | . . . . . Largest Group . | . . . . . Highest-Rated Group . | . . . . . Highest-Rated Ally . | . . . . . Total Orders . | . . . . . Ally Attacks . | . . . . . Total Damage . | . . . . . Kills . | . . . . . Allies Corrupted . | . . . . . Allies Melted . | . . . . . Intel | -11 -10 -10 -10 -9 ------- Run | Yrd Mat Min Exi Min Active Infowar (turns) 2742 | 653 776 543 705 65 Terrain 2742 | 653 776 543 705 65 Robot Analysis Total . | . . . . . Derelict Logs Recovered . | . . . . . Drone Launches . | . . . . . Drone Recoveries . | . . . . . Exploration | -11 -10 -10 -10 -9 ------------- Run | Yrd Mat Min Exi Min Turns Passed 2815 | 726 776 543 705 65 Spaces Moved 783 | 156 228 163 221 15 Core 8 | 8 . . . . Treads 775 | 148 228 163 221 15 Legs . | . . . . . Wheels . | . . . . . Hover . | . . . . . Flight . | . . . . . Fastest Speed 50 | 50 160 320 320 320 Average Speed 277 | 157 283 320 320 320 Slowest Speed 320 | 160 320 320 320 320 Overloaded Moves . | . . . . . Propulsion Burnouts . | . . . . . Robots Hopped . | . . . . . Potential Cave-ins . | . . . . . Cave-ins Triggered . | . . . . . Exploration Rate (%) 27 | 18 31 35 42 9 Regions Visited 4 Branch Regions 3 Pre-discovered Areas . | . . . . . Known Exits Taken . | . . . . . Unknown Exits Taken 4 | 1 1 1 1 . Scrap Searched . | . . . . . Spaces Dug . | . . . . . Terrain Destroyed 52 | . 12 . . 40 Melee . | . . . . . Projectile . | . . . . . AOE 52 | . 12 . . 40 Terrain Rammed . | . . . . . Walls Destroyed . | . . . . . Machines Disabled . | . . . . . Actions | -11 -10 -10 -10 -9 --------- Run | Yrd Mat Min Exi Min Total 1328 | 624 284 173 221 26 Wait 456 | 454 1 . . 1 Move 779 | 155 227 162 220 15 Hop . | . . . . . Pick Up 21 | 4 15 . 1 1 Fast Attach 7 | 7 . . . . Attach 4 | . 1 . . 3 Detach . | . . . . . Swap 8 | . 2 5 . 1 Drop . | . . . . . Fire 53 | 4 38 6 . 5 Melee . | . . . . . Ram . | . . . . . Kick . | . . . . . Crush . | . . . . . Escape Stasis . | . . . . . Rewire . | . . . . . Trap . | . . . . . Miscellaneous . | . . . . . Route ------- -11/Scrapyard -10/Materials (discovered 2 exits: [*Mat] / [*Min]) -10/Mines (discovered 2 exits: [*Mat] / *Exi) -10/Exiles -9/Mines History --------- Turn | Location | Event 44 | -11/Scrapyard | Discovered new exit (range 15) 727 | -11/Scrapyard | Entered Materials 728 | -10/Materials | Build established: Mutant 1064 | -10/Materials | Discovered new exit (range 16) 1286 | -10/Materials | Discovered new exit (range 15) 1503 | -10/Materials | Entered Mines 1944 | -10/Mines | Discovered new exit (range 5) 2030 | -10/Mines | Deemed a non-threat by the Exiles lab entrance 2034 | -10/Mines | Discovered new exit (range 5) 2046 | -10/Mines | Entered Exiles 2120 | -10/Exiles | Met 8R-AWN 2178 | -10/Exiles | Met EX-HEX 2270 | -10/Exiles | Met EX-BIN 2306 | -10/Exiles | Aligned with FarCom system 2309 | -10/Exiles | Given EX-Vault access code 2382 | -10/Exiles | Opened EX-Vault 2405 | -10/Exiles | Found AWS/Autocannon 2470 | -10/Exiles | Warned to stay clear of 0b10 Research branches 2707 | -10/Exiles | Discovered new exit (range 15) 2751 | -10/Exiles | Left Exiles lab with AWS/Autocannon 2751 | -10/Exiles | Entered Mines 2752 | -9/Mines | Assembled infested the area 2762 | -9/Mines | Received a Rocket Launcher from a helpful Derelict 2811 | -9/Mines | Core integrity fell below 50% 2813 | -9/Mines | Core integrity fell below 20% 2816 | -9/Mines | Destroyed by D-53 Grenadier with Mini Grenade Launcher Last Messages --------------- 02759_ F3-97F(g): "Everyone knows a good old rocket launcher goes a long way." 02760_ F3-97F(g): "Need to get rid of a swarm? Done. Need a big hole in the wall? Done." 02761_ F3-97F(g): "Need a small hole in the wall? Leave that to the mining laser wimps, I say!" 02762_ F3-97F(g): "Would you like a rocket launcher? I know I would if I were you, so I'm going to lend you mine." 02762_ F3-97F(g) slips back into the shadows. 02765_ Acquired Rocket Launcher. 02801_ C-45 Heavy ARC bursts open, deploying its payload. 02801_ D-53 Grenadier unfolds itself. 02807_ Lgt. Treads destroyed. 02810_ The unstable cave ceiling collapses. 02813_ Ion Engine destroyed. 02813_ Assault Rifle destroyed. 02815_ The unstable cave ceiling collapses. Map ----- +----------------------------------------------------+ | ????????????????????????????????????????????????? | | ????????????????????????????????????????????????? | | ????????????????????????????????????????????????? | | ????????????????????????????????????????????????? | | ????????????????????#??#????????????????????????? | | ????????????????????????????????????????????????? | | ????????????????????????????????????????????????? | | ??????????????####??????????????????????????????? | | ?????????????## ##?????????????????????????????? | | ?????????????# ##????????????????????????????? | | ???????????### ##??###??????"???????????????? | | ??#????# #### #####???????????????????????? | | ???????# #???????????????????????? | | ????#??####### #????#??????????????????? | | ??????#??????### ## $ ????????????????? | | ???#???#???#??# ???? ??????????????????? | | ???????#?????## #?? ??????????????????????? | | ?????????????# ?????????????????????????? | | ?????????????## d ??#????#?????????????????? | | ?????????????# d #????????????#???????????? | | ?????????????# #####???????????????????? | | ??????????#???# # ##???????????????????? | | ?????????????## ##??????????????????? | | ????????????????# #??????????????????? | | ???????????##???### #??????????????????? | | ???????#??????#??## @ #??????????????????? | | ??????????????#???# #??????????????????? | | ?????????????????### #??????#???????????? | | ?????????????#?????## #?????????????????? | | ????????????????????## #?????????????????? | | ?????????????????????#####t #?????????????????? | | ????????????????????#????? ##????#????????????? | | ??????????? ?????????????? ###??????????????????? | | ?????????????????????????? #????????????????????? | | ???????????????????????????#????????????????????? | | ?????????????#??????????????????????????????????? | | ????????????????????????????????????????????????? | | ????????????????????????????????????????????????? | | ????????????????????????????????????????????????? | | ????????????????????????????????????????????????? | | ????????????????????????? ??????????????????????? | | ????????????????????????????????????????????????? | | ????????????????????????????????????????????????? | | ????????????????????????????????????????????????? | | ????????????????????????????????????????????????? | | ????????????????????????????????????????????????? | | ????????????????????????????????????????????????? | | ????????????????????????????????????????????????? | | ????????????????????????????????????????????????? | | ????????????????????????????????????????????????? | +----------------------------------------------------+ Best States ------------- Heat Dissipation 25 Energy Generation 10 Energy Capacity 250 Matter Stores 300 Matter Capacity 300 Sight Range 16 Terrain Scan Range 16 Terrain Scan Density 10 Evasion (%) 40 Recoil Reduction 2 Item Schematics ----------------- None Robot Schematics ------------------ None Fabricated ------------ Nothing Repaired ---------- Nothing Studied --------- None Alien Tech Used ----------------- None Achievements -------------- None Challenges ------------ None Game ------ Seed HellfireBiometalPlating Manual? 0 Play Time 00:12:21 Cumulative 10.4 hours Start 2026.01.16 @ 11:40:24 End 2026.01.16 @ 11:52:11 Sessions 1 Manual Loads 0 Difficulty Rogue Special Mode None Game No. 14 Rogue 14 Adventurer 0 Explorer 0 Win Type - Total 0 Types 0/0/0/0/0/0/0/0/0/0 Lore% 5 Gallery% 13 Achievement% 11 Wizard Run 0 Options --------- Layout 1 ASCII 0 Keyboard 0 Movement Numpad Keybinds 0 Fullscreen 2 Font 24/Smallcaps Map View 50x35 Zoom Use 0% Tactical HUD 1 Map Filters NONE Filters NONE Steam 1 RUN: ea145a8e-29e5-42f4-8676-fd500448741a